bitfinex/quotes_SOLUSD_20230113
["timestamp","ask_amount","ask_price","bid_price","bid_amount"]
[1673649625239,20.0,18.546,18.525,0.06571919]
[1673649625775,49.9691928,18.546,18.525,0.06571919]
[1673649625999,17.0,18.545,18.525,0.06571919]
[1673649626180,20.0,18.544,18.525,0.06571919]
[1673649626396,49.9691928,18.544,18.525,0.06571919]
[1673649626601,29.9691928,18.543,18.525,0.06571919]
[1673649626811,20.0,18.542,18.525,0.06571919]
[1673649627247,17.0,18.541,18.522,24.98535282]
[1673649627460,20.0,18.54,18.522,24.98535282]
[1673649627772,20.0,18.54,18.512,99.94503309]
[1673649627773,20.0,18.538,18.512,99.94503309]
[1673649627979,5.80376253,18.536,18.512,99.94503309]
[1673649628175,5.80376253,18.534,18.519,14.29858253]
[1673649628514,5.80376253,18.534,18.512,99.94503309]
[1673649628515,5.80376253,18.532,18.512,99.94503309]
[1673649629137,29.9691928,18.533,18.512,99.94503309]
[1673649629455,22.80376253,18.532,18.512,99.94503309]
[1673649629655,5.80376253,18.532,18.512,99.94503309]
[1673649629878,51.76451372,18.532,18.512,99.94503309]
[1673649630095,5.80376253,18.53,18.512,99.94503309]
[1673649630823,5.80376253,18.528,18.512,99.94503309]
[1673649632397,35.77295533,18.528,18.512,99.94503309]
[1673649632601,5.80376253,18.526,18.512,99.94503309]
[1673649632932,5.80376253,18.527,18.512,99.94503309]
[1673649633145,17.0,18.526,18.512,99.94503309]
[1673649633354,5.80376253,18.525,18.512,99.94503309]
[1673649633564,29.9691928,18.528,18.512,99.94503309]
[1673649633765,22.80376253,18.527,18.512,99.94503309]
[1673649633969,5.80376253,18.527,18.512,99.94503309]
[1673649634183,66.9691928,18.526,18.512,99.94503309]
[1673649634396,5.80376253,18.525,18.512,99.94503309]
[1673649634600,37.0,18.524,18.512,99.94503309]
[1673649634818,5.80376253,18.523,18.512,99.94503309]
[1673649635030,20.0,18.522,18.512,99.94503309]
[1673649635251,5.80376253,18.521,18.512,99.94503309]
[1673649635444,20.0,18.52,18.512,99.94503309]
[1673649636188,20.0,18.522,18.512,99.94503309]
[1673649636389,5.80376253,18.521,18.512,99.94503309]
[1673649636722,20.0,18.52,18.512,99.94503309]
[1673649637540,5.80376253,18.521,18.512,99.94503309]
[1673649637755,20.0,18.52,18.512,99.94503309]
[1673649638075,37.0,18.52,18.512,99.94503309]
[1673649638497,20.0,18.52,18.512,99.94503309]
[1673649638715,20.0,18.521,18.512,99.94503309]
[1673649639033,5.80376253,18.52,18.512,99.94503309]
[1673649639450,42.59486837,18.52,18.512,99.94503309]
[1673649639769,5.80376253,18.52,18.512,99.94503309]
[1673649640603,20.0,18.519,18.509,295.22182734]
[1673649640808,5.80376253,18.518,18.509,295.22182734]
[1673649641144,34.70305208,18.518,18.509,295.22182734]
[1673649641360,5.80376253,18.517,18.509,295.22182734]
[1673649641881,5.80376253,18.517,18.509,145.22182734]
[1673649641882,5.80376253,18.515,18.509,145.22182734]
[1673649642079,5.80376253,18.512,18.508,254.01032518]
[1673649642689,5.80376253,18.512,18.508,184.28262518]
[1673649643123,5.80376253,18.51,18.508,184.28262518]
[1673649643544,51.76451372,18.51,18.508,184.28262518]
[1673649643758,5.80376253,18.51,18.508,184.28262518]
[1673649643960,5.80376253,18.515,18.508,184.28262518]
[1673649644160,5.80376253,18.513,18.508,184.28262518]
[1673649644371,5.80376253,18.515,18.508,184.28262518]
[1673649644711,5.80376253,18.519,18.508,184.28262518]
[1673649645024,29.9691928,18.515,18.508,184.28262518]
[1673649645243,5.80376253,18.513,18.508,184.28262518]
[1673649645763,5.80376253,18.513,18.496,90.17514089]
[1673649645975,5.80376253,18.513,18.487,90.57288477]
[1673649646181,5.80376253,18.513,18.489,90.87774445]
[1673649646496,5.82342184,18.517,18.492,20.0]
[1673649646713,5.82342184,18.517,18.493,110.64381653]
[1673649646909,25.82342184,18.515,18.493,110.64381653]
[1673649647119,5.82342184,18.515,18.494,20.0]
[1673649647343,5.82342184,18.515,18.493,110.64381653]
[1673649648600,51.73615745,18.515,18.493,110.64381653]
[1673649649021,29.9691928,18.514,18.493,110.64381653]
[1673649649216,5.82342184,18.512,18.493,110.64381653]
[1673649649888,20.0,18.517,18.488,90.52581167]
[1673649650066,20.0,18.515,18.489,20.0]
[1673649650270,42.82342184,18.514,18.49,90.66591091]
[1673649650480,72.79261464,18.514,18.49,90.66591091]
[1673649651126,42.82342184,18.514,18.49,90.66591091]
[1673649651334,42.82342184,18.514,18.487,20.0]
[1673649651335,42.82342184,18.514,18.488,90.52581167]
[1673649651739,42.82342184,18.514,18.487,90.57288477]
[1673649652163,49.9691928,18.513,18.487,90.57288477]
[1673649652385,22.82342184,18.512,18.487,90.57288477]
[1673649652576,52.79261464,18.512,18.487,90.57288477]
[1673649652793,20.0,18.51,18.487,90.57288477]
[1673649653003,22.82342184,18.509,18.487,90.57288477]
[1673649653223,40.0,18.508,18.487,90.57288477]
[1673649653442,17.0,18.507,18.483,90.92144824]
[1673649653653,40.0,18.506,18.483,90.92144824]
[1673649653978,17.0,18.505,18.483,90.92144824]
[1673649654158,20.0,18.504,18.483,90.92144824]
[1673649654371,17.0,18.503,18.483,90.92144824]
[1673649654682,20.0,18.501,18.483,90.92144824]
[1673649655010,20.0,18.499,18.483,90.92144824]
[1673649655213,20.0,18.498,18.483,90.92144824]
[1673649655418,69.04140228,18.498,18.483,90.92144824]
[1673649655624,20.0,18.497,18.483,90.92144824]
[1673649655835,20.0,18.496,18.483,90.92144824]
[1673649656049,49.9691928,18.496,18.483,90.92144824]
[1673649656264,29.9691928,18.495,18.483,90.92144824]
[1673649656475,20.0,18.494,18.483,90.92144824]
[1673649656696,20.0,18.496,18.483,90.92144824]
[1673649657019,85.91504586,18.496,18.483,90.92144824]
[1673649657431,17.0,18.495,18.483,90.92144824]
[1673649657841,20.0,18.494,18.483,90.92144824]
[1673649658063,17.0,18.493,18.483,90.92144824]
[1673649658274,40.0,18.492,18.483,90.92144824]
[1673649658473,17.0,18.491,18.483,90.92144824]
[1673649658679,20.0,18.49,18.483,90.92144824]
[1673649658890,17.0,18.489,18.483,90.92144824]
[1673649659105,20.0,18.49,18.483,90.92144824]
[1673649659948,29.9691928,18.489,18.483,90.92144824]
[1673649660154,20.0,18.488,18.483,90.92144824]
[1673649660366,49.04140228,18.49,18.483,90.92144824]
[1673649660680,49.46787294,18.494,18.483,90.92144824]
[1673649660893,20.0,18.489,18.483,90.92144824]
[1673649661106,35.94585306,18.493,18.483,90.92144824]
[1673649661316,37.0,18.492,18.483,90.92144824]
[1673649661743,37.0,18.492,18.482,36.6827596]
[1673649662486,20.0,18.492,18.482,36.6827596]
[1673649663316,20.0,18.495,18.482,36.6827596]
[1673649664574,29.9691928,18.494,18.482,36.6827596]
[1673649664779,20.0,18.493,18.482,36.6827596]
[1673649665202,20.0,18.495,18.482,36.6827596]
[1673649665406,29.9691928,18.492,18.482,36.6827596]
[1673649665619,20.0,18.491,18.482,36.6827596]
[1673649666160,29.9691928,18.491,18.482,36.6827596]
[1673649666368,20.0,18.49,18.482,36.6827596]
[1673649666782,49.9691928,18.49,18.482,36.6827596]
[1673649666994,17.0,18.489,18.482,36.6827596]
[1673649667201,20.0,18.488,18.482,36.6827596]
[1673649667735,5.40715152,18.487,18.482,5.96e-05]
[1673649667949,35.37634432,18.487,18.482,5.96e-05]
[1673649668136,5.40715152,18.485,18.482,5.96e-05]
[1673649668556,35.37634432,18.486,18.482,5.96e-05]
[1673649668992,5.40715152,18.486,18.482,5.96e-05]
[1673649669308,35.37634432,18.489,18.482,5.96e-05]
[1673649669529,5.40715152,18.487,18.482,5.96e-05]
[1673649669719,5.40715152,18.484,18.482,5.96e-05]
[1673649670053,29.9691928,18.483,18.482,5.96e-05]
[1673649670268,35.37634432,18.483,18.482,5.96e-05]
[1673649670790,52.37634432,18.483,18.482,5.96e-05]
[1673649673927,35.37634432,18.483,18.482,5.96e-05]
[1673649675308,55.37634432,18.483,18.482,5.96e-05]
[1673649675717,25.40715152,18.483,18.482,5.96e-05]
[1673649676337,55.37634432,18.483,18.482,5.96e-05]
[1673649677186,25.40715152,18.483,18.482,5.96e-05]
[1673649677615,5.40715152,18.483,18.482,5.96e-05]
[1673649678232,20.0,18.483,18.482,5.96e-05]
[1673649678442,5.40715152,18.483,18.482,5.96e-05]
[1673649678669,5.40715152,18.488,18.482,5.96e-05]
[1673649679072,5.40715152,18.483,18.482,5.96e-05]
[1673649679703,5.40715152,18.487,18.482,5.96e-05]
[1673649680022,29.9691928,18.484,18.482,5.96e-05]
[1673649680771,67.41555449,18.484,18.482,5.96e-05]
[1673649680964,29.9691928,18.484,18.482,5.96e-05]
[1673649681384,45.75979063,18.487,18.482,5.96e-05]
[1673649682666,29.9691928,18.486,18.482,5.96e-05]
[1673649682888,83.20615232,18.487,18.482,5.96e-05]
[1673649684146,37.44636169,18.487,18.482,5.96e-05]
[1673649684459,46.9691928,18.486,18.482,5.96e-05]
[1673649684786,107.41555449,18.485,18.482,5.96e-05]
[1673649684975,49.9691928,18.485,18.482,5.96e-05]
[1673649685306,29.9691928,18.484,18.482,5.96e-05]
[1673649685707,20.0,18.483,18.482,5.96e-05]
[1673649686123,66.9691928,18.483,18.482,5.96e-05]
[1673649687916,37.0,18.483,18.482,5.96e-05]
[1673649688643,20.0,18.483,18.482,5.96e-05]
[1673649688860,37.0,18.483,18.482,5.96e-05]
[1673649689487,66.9691928,18.483,18.482,5.96e-05]
[1673649689715,70.0794466,18.483,18.482,5.96e-05]
[1673649690134,66.9691928,18.483,18.482,5.96e-05]
[1673649690353,70.02334686,18.483,18.482,5.96e-05]
[1673649693272,66.9691928,18.483,18.482,5.96e-05]
[1673649694020,71.69514979,18.483,18.482,5.96e-05]
[1673649694346,84.69514979,18.483,18.482,5.96e-05]
[1673649695284,54.69514979,18.483,18.482,5.96e-05]
[1673649695694,24.72595699,18.483,18.482,5.96e-05]
[1673649695912,54.69514979,18.483,18.482,5.96e-05]
[1673649696754,49.9691928,18.483,18.482,5.96e-05]
[1673649697385,53.02737155,18.483,18.482,5.96e-05]
[1673649698333,20.0,18.483,18.456,15.0000596]
[1673649698525,0.06571919,18.482,18.457,6.25153]
[1673649700242,29.9691928,18.481,18.457,6.25153]
[1673649700453,20.06571919,18.48,18.457,6.25153]
[1673649702012,0.06571919,18.48,18.457,6.25153]
[1673649702342,17.06571919,18.48,18.457,6.25153]
[1673649702528,20.0,18.478,18.457,6.25153]
[1673649702739,0.06571919,18.477,18.455,130.0417]
[1673649703174,30.03491199,18.477,18.455,130.0417]
[1673649703600,30.03491199,18.477,18.455,110.0417]
[1673649703811,20.0,18.476,18.455,110.0417]
[1673649704007,0.06571919,18.475,18.455,110.0417]
[1673649704860,29.9691928,18.474,18.455,110.0417]
[1673649705059,20.06571919,18.473,18.455,110.0417]
[1673649705815,0.06571919,18.473,18.455,110.0417]
[1673649706739,0.06571919,18.473,18.456,20.0]
[1673649707788,0.06571919,18.473,18.455,110.0417]
[1673649708005,30.03491199,18.473,18.455,110.0417]
[1673649708223,65.75979063,18.472,18.455,110.0417]
[1673649708414,0.06571919,18.471,18.455,110.0417]
[1673649708625,45.82550982,18.471,18.455,110.0417]
[1673649708843,20.0,18.47,18.455,110.0417]
[1673649709066,0.06571919,18.469,18.455,110.0417]
[1673649715879,20.06571919,18.469,18.455,110.0417]
[1673649716316,20.06571919,18.469,18.454,36.6827596]
[1673649716317,20.0,18.467,18.454,36.6827596]
[1673649716643,3.34672417,18.465,18.454,36.6827596]
[1673649718201,0.06571919,18.466,18.454,36.6827596]
[1673649719259,30.03491199,18.466,18.454,36.6827596]
[1673649719479,3.42282543,18.465,18.454,36.6827596]
[1673649720837,0.06571919,18.466,18.454,36.6827596]
[1673649721369,3.75507127,18.465,18.454,36.6827596]
[1673649722626,33.72426407,18.465,18.454,36.6827596]
[1673649723464,3.75507127,18.465,18.454,36.6827596]
[1673649723657,0.06571919,18.466,18.454,36.6827596]
[1673649723878,5.65262671,18.465,18.454,36.6827596]
[1673649725152,0.06571919,18.466,18.454,36.6827596]
[1673649725381,5.65262671,18.465,18.454,36.6827596]
[1673649726418,0.06571919,18.466,18.454,36.6827596]
[1673649726631,0.06571919,18.466,18.456,20.0]
[1673649727057,5.65262671,18.465,18.455,114.0802]
[1673649727266,0.06571919,18.466,18.455,114.0802]
[1673649727480,3.01760554,18.465,18.455,114.0802]
[1673649727681,0.06571919,18.466,18.456,20.0]
[1673649727892,0.06571919,18.466,18.455,114.0802]
[1673649730321,0.06571919,18.466,18.455,64.0802]
[1673649731896,0.06571919,18.466,18.456,20.0]
[1673649733601,0.06571919,18.466,18.455,64.0802]
[1673649739174,0.06571919,18.466,18.456,20.0]
[1673649740755,0.06571919,18.466,18.457,20.0]
[1673649741058,0.06571919,18.466,18.458,20.0]
[1673649742414,20.0,18.482,18.458,20.0]
[1673649742932,59.97758986,18.481,18.458,20.0]
[1673649743353,59.97758986,18.48,18.458,20.0]
[1673649743794,29.9691928,18.479,18.458,20.0]
[1673649743999,30.00839706,18.48,18.458,20.0]
[1673649744199,20.0,18.479,18.458,20.0]
[1673649747667,20.0,18.479,18.455,64.0802]
[1673649747668,29.9691928,18.478,18.455,64.0802]
[1673649747997,20.0,18.477,18.457,20.0]
[1673649748187,20.0,18.479,18.457,20.0]
[1673649748393,49.9691928,18.479,18.457,20.0]
[1673649749361,29.9691928,18.479,18.457,20.0]
[1673649749769,29.9691928,18.479,18.457,40.0]
[1673649750200,29.9691928,18.479,18.456,6.25187]
[1673649750628,45.64890795,18.478,18.456,6.25187]
[1673649750836,20.0,18.477,18.456,26.25187]
[1673649751158,29.9691928,18.476,18.456,6.25187]
[1673649751334,29.9691928,18.476,18.457,20.0]
[1673649751547,30.00839706,18.48,18.457,20.0]
[1673649751755,30.00839706,18.48,18.458,6.25119]
[1673649751973,45.64890795,18.485,18.458,6.25119]
[1673649752180,29.9691928,18.479,18.458,6.25119]
[1673649752394,45.64890795,18.485,18.458,6.25119]
[1673649752624,75.65730501,18.485,18.458,6.25119]
[1673649752821,29.9691928,18.484,18.458,6.25119]
[1673649753236,17.0,18.483,18.458,6.25119]
[1673649753551,59.97758986,18.482,18.456,20.0]
[1673649753772,20.0,18.481,18.457,20.0]
[1673649753986,49.9691928,18.481,18.459,20.0]
[1673649754177,29.9691928,18.48,18.46,112.0186]
[1673649754392,20.0,18.479,18.461,20.0]
[1673649754698,29.9691928,18.478,18.46,112.0186]
[1673649755357,29.9691928,18.478,18.461,20.0]
[1673649756615,29.9691928,18.478,18.46,112.0186]
[1673649757853,29.9691928,18.478,18.461,20.0]
[1673649758696,29.9691928,18.478,18.46,112.0186]
[1673649758920,29.9691928,18.478,18.461,20.0]
[1673649759757,29.9691928,18.478,18.46,112.0186]
[1673649760200,29.9691928,18.478,18.454,36.6827596]
[1673649760391,29.9691928,18.478,18.458,20.0]
[1673649764700,29.9691928,18.478,18.458,17.5]
[1673649765765,20.0,18.479,18.455,71.5802]
[1673649766081,29.9691928,18.479,18.458,20.0]
[1673649766311,20.0,18.478,18.458,26.25119]
[1673649767765,49.9691928,18.478,18.458,26.25119]
[1673649768187,49.9691928,18.478,18.458,6.25119]
[1673649768376,49.9691928,18.478,18.455,20.0]
[1673649768586,49.9691928,18.478,18.458,20.0]
[1673649769331,20.0,18.478,18.458,20.0]
[1673649769761,20.0,18.478,18.454,36.6827596]
[1673649769973,69.9691928,18.478,18.454,36.6827596]
[1673649770202,20.0,18.477,18.454,36.6827596]
[1673649770514,33.15696455,18.476,18.454,36.6827596]
[1673649770704,20.0,18.474,18.454,36.6827596]
[1673649770915,20.0,18.473,18.455,117.8894]
[1673649771132,49.9691928,18.473,18.455,117.8894]
[1673649771345,49.9691928,18.473,18.456,20.0]
[1673649771762,49.9691928,18.473,18.455,117.8894]
[1673649773767,30.00839706,18.478,18.456,40.0]
[1673649773995,59.97758986,18.478,18.456,40.0]
[1673649775237,30.00839706,18.478,18.456,40.0]
[1673649777328,45.64890795,18.48,18.456,40.0]
[1673649777569,20.0,18.479,18.456,40.0]
[1673649777962,19.5,18.479,18.456,40.0]
[1673649778611,19.5,18.479,18.458,20.0]
[1673649778798,19.5,18.479,18.458,26.25119]
[1673649779223,20.0,18.478,18.458,26.25119]
[1673649779432,20.0,18.483,18.458,26.25119]
[1673649779993,20.0,18.483,18.459,6.25085]
[1673649780943,20.0,18.483,18.461,20.0]
[1673649783550,45.64890795,18.489,18.463,20.0]
[1673649783889,17.0,18.488,18.464,130.4551]
[1673649784077,17.0,18.489,18.465,20.0]
[1673649784413,17.0,18.489,18.466,20.0]
[1673649784607,17.0,18.489,18.467,20.0]
[1673649785764,20.0,18.488,18.467,20.0]
[1673649785976,17.0,18.487,18.467,20.0]
[1673649787045,17.0,18.487,18.466,20.0]
[1673649788281,17.0,18.487,18.465,20.0]
[1673649788493,17.0,18.487,18.466,20.0]
[1673649793244,17.0,18.487,18.465,40.0]
[1673649793452,43.0061304,18.487,18.465,20.0]
[1673649793646,43.0061304,18.487,18.464,110.4551]
[1673649793852,20.0,18.486,18.464,110.4551]
[1673649794062,20.0,18.486,18.46,109.2358]
[1673649794266,17.0,18.485,18.46,218.6238]
[1673649794502,20.0,18.484,18.46,218.6238]
[1673649794700,37.0,18.483,18.46,218.6238]
[1673649794916,20.0,18.483,18.46,218.6238]
[1673649795123,20.0,18.483,18.461,20.0]
[1673649795326,20.0,18.484,18.461,20.0]
[1673649796910,17.0,18.483,18.461,20.0]
[1673649797113,20.0,18.482,18.461,20.0]
[1673649797325,17.0,18.481,18.461,20.0]
[1673649797535,20.0,18.482,18.46,218.6238]
[1673649797746,17.0,18.481,18.46,218.6238]
[1673649797954,20.0,18.48,18.46,218.6238]
[1673649799125,20.0,18.48,18.461,20.0]
[1673649800595,20.0,18.48,18.46,218.6238]
[1673649802279,137.8298,18.48,18.46,218.6238]
[1673649802496,3.56707909,18.479,18.461,20.0]
[1673649802805,137.8298,18.48,18.461,20.0]
[1673649804572,137.8298,18.48,18.46,218.6238]
[1673649805008,137.8298,18.48,18.461,20.0]
[1673649806172,167.7989928,18.48,18.46,218.6238]
[1673649806572,137.8298,18.48,18.46,218.6238]
[1673649807309,167.7989928,18.48,18.46,218.6238]
[1673649807534,17.0,18.479,18.46,218.6238]
[1673649807849,4.00591277,18.477,18.454,36.6827596]
[1673649808037,21.00591277,18.477,18.455,113.9706]
[1673649808248,25.4619993,18.475,18.455,113.9706]
[1673649808460,5.4619993,18.473,18.455,113.9706]
[1673649808683,5.4619993,18.471,18.455,113.9706]
[1673649808892,5.4619993,18.469,18.455,113.9706]
[1673649809107,5.4619993,18.467,18.455,113.9706]
[1673649809425,5.4619993,18.471,18.455,113.9706]
[1673649809640,20.0,18.47,18.455,113.9706]
[1673649809834,5.4619993,18.469,18.455,113.9706]
[1673649810165,20.0,18.468,18.455,113.9706]
[1673649810356,5.4619993,18.467,18.455,113.9706]
[1673649811119,5.4619993,18.474,18.455,113.9706]
[1673649811423,29.9691928,18.478,18.457,20.0]
[1673649811635,5.4619993,18.477,18.457,20.0]
[1673649811828,5.4619993,18.475,18.455,113.9706]
[1673649812271,5.4619993,18.475,18.456,20.0]
[1673649812589,159.40210795,18.481,18.456,20.0]
[1673649812797,29.9691928,18.478,18.456,20.0]
[1673649813009,20.0,18.477,18.456,20.0]
[1673649813855,20.0,18.477,18.455,133.9706]
[1673649814045,20.0,18.477,18.455,113.9706]
[1673649814247,29.9691928,18.478,18.456,20.0]
[1673649814559,29.9691928,18.479,18.456,20.0]
[1673649814783,29.9691928,18.479,18.457,20.0]
[1673649816786,29.9691928,18.479,18.458,20.0]
[1673649816995,20.0,18.478,18.458,20.0]
[1673649817183,20.0,18.478,18.459,20.0]
[1673649818372,49.9691928,18.478,18.461,20.0]
[1673649818695,49.9691928,18.478,18.46,130.0202]
[1673649818879,20.0,18.478,18.46,110.0202]
[1673649819097,20.0,18.478,18.461,20.0]
[1673649819314,20.0,18.479,18.461,20.0]
[1673649819727,49.9691928,18.479,18.461,20.0]
[1673649820459,49.9691928,18.479,18.46,110.0202]
[1673649820669,49.9691928,18.479,18.461,20.0]
[1673649821321,17.0,18.478,18.46,110.0202]
[1673649821744,29.9691928,18.478,18.461,20.0]
[1673649822678,29.9691928,18.478,18.46,110.0202]
[1673649822890,75.06690075,18.478,18.46,110.0202]
[1673649824680,29.9691928,18.477,18.455,113.9706]
[1673649824996,65.80905387,18.476,18.455,113.9706]
[1673649825205,20.0,18.475,18.455,113.9706]
[1673649825416,3.71134592,18.474,18.455,113.9706]
[1673649825626,33.68053872,18.474,18.455,113.9706]
[1673649825825,3.71134592,18.472,18.455,113.9706]
[1673649826472,3.71134592,18.472,18.456,20.0]
[1673649826880,3.71134592,18.473,18.456,20.0]
[1673649827637,20.0,18.474,18.456,20.0]
[1673649827827,2.95295625,18.473,18.455,113.9706]
[1673649828249,2.95295625,18.473,18.456,20.0]
[1673649828998,49.9691928,18.474,18.456,20.0]
[1673649829825,49.9691928,18.474,18.455,113.9706]
[1673649830581,2.97605811,18.473,18.455,113.9706]
[1673649830983,29.9691928,18.472,18.455,113.9706]
[1673649831193,23.18932505,18.471,18.455,113.9706]
[1673649831621,20.0,18.471,18.455,113.9706]
[1673649831824,3.0214596,18.47,18.455,113.9706]
[1673649832145,3.32657673,18.472,18.455,113.9706]
[1673649832675,29.9691928,18.471,18.455,113.9706]
[1673649832887,3.32657673,18.47,18.455,113.9706]
[1673649833080,23.32657673,18.47,18.455,113.9706]
[1673649833301,53.29576953,18.47,18.45,108.9372]
[1673649833510,17.0,18.469,18.442,20.0]
[1673649833722,24.36368323,18.468,18.444,20.0]
[1673649833928,17.0,18.467,18.444,20.0]
[1673649834141,4.36368323,18.466,18.444,20.0]
[1673649834353,17.0,18.465,18.444,20.0]
[1673649834674,26.89165396,18.464,18.444,20.0]
[1673649835079,29.36546622,18.464,18.444,20.0]
[1673649836460,27.49538054,18.463,18.443,110.7573]
[1673649836652,4.4178417,18.462,18.443,110.7573]
[1673649836864,20.0,18.462,18.444,20.0]
[1673649837073,4.4178417,18.461,18.444,20.0]
[1673649837305,4.4178417,18.463,18.444,20.0]
[1673649837934,29.9691928,18.462,18.444,20.0]
[1673649838130,4.4178417,18.461,18.444,20.0]
[1673649838345,24.4178417,18.461,18.444,20.0]
[1673649839514,20.0,18.461,18.444,20.0]
[1673649839719,29.9691928,18.466,18.444,20.0]
[1673649839913,20.0,18.464,18.444,20.0]
[1673649840116,4.4178417,18.463,18.443,110.7573]
[1673649840353,34.3870345,18.463,18.443,110.7573]
[1673649840560,29.9691928,18.462,18.443,110.7573]
[1673649840875,20.0,18.46,18.443,110.7573]
[1673649841083,4.4178417,18.458,18.443,110.7573]
[1673649841819,4.4178417,18.462,18.443,110.7573]
[1673649842241,29.9691928,18.461,18.443,110.7573]
[1673649842450,20.0,18.459,18.443,110.7573]
[1673649842651,4.4178417,18.458,18.443,110.7573]
[1673649842871,24.4178417,18.458,18.443,110.7573]
[1673649844649,54.3870345,18.458,18.443,110.7573]
[1673649845376,17.0,18.457,18.454,5.96e-05]
[1673649845589,25.82342184,18.456,18.454,5.96e-05]
[1673649845810,20.0,18.455,18.454,5.96e-05]
[1673649846023,55.79261464,18.455,18.454,5.96e-05]
[1673649849599,72.79261464,18.455,18.454,5.96e-05]
[1673649850232,147.05696538,18.455,18.454,5.96e-05]
[1673649850642,195.56886208,18.455,18.454,5.96e-05]
[1673649851067,0.0599404,18.451,18.432,116.5866]
[1673649851266,0.0599404,18.451,18.427,36.6827596]
[1673649851472,124.32062241,18.45,18.427,36.6827596]
[1673649851687,37.0,18.449,18.427,36.6827596]
[1673649851919,20.0,18.448,18.427,36.6827596]
[1673649852135,37.0,18.447,18.427,36.6827596]
[1673649852318,148.8627685,18.447,18.427,36.6827596]
[1673649852647,160.3746652,18.446,18.427,36.6827596]
[1673649852860,20.0,18.444,18.427,36.6827596]
[1673649853172,17.0,18.443,18.427,36.6827596]
[1673649853387,197.3746652,18.443,18.427,36.6827596]
[1673649853586,111.8627685,18.442,18.427,36.6827596]
[1673649853910,161.32062241,18.441,18.427,36.6827596]
[1673649854112,197.3746652,18.441,18.427,36.6827596]
[1673649854434,160.3746652,18.44,18.427,36.6827596]
[1673649854645,20.0,18.438,18.427,36.6827596]
[1673649854857,17.0,18.437,18.427,36.6827596]
[1673649855059,20.0,18.435,18.427,36.6827596]
[1673649855249,94.35142961,18.437,18.427,36.6827596]
[1673649855465,4.02093747,18.455,18.427,36.6827596]
[1673649855466,118.8943,18.449,18.427,36.6827596]
[1673649855678,165.82093747,18.456,18.427,36.6827596]
[1673649855899,63.25599569,18.453,18.427,36.6827596]
[1673649856116,35.20402664,18.451,18.429,20.0]
[1673649856318,35.20402664,18.451,18.428,118.0756]
[1673649856529,63.31593609,18.451,18.428,118.0756]
[1673649857464,20.0,18.45,18.428,118.0756]
[1673649857686,17.0,18.449,18.428,118.0756]
[1673649857903,20.0,18.448,18.428,118.0756]
[1673649858227,66.9691928,18.447,18.428,118.0756]
[1673649858430,95.08110225,18.447,18.428,118.0756]
[1673649858751,78.08110225,18.446,18.428,118.0756]
[1673649858941,37.0,18.445,18.428,118.0756]
[1673649859269,95.08110225,18.445,18.427,36.6827596]
[1673649859476,29.9691928,18.444,18.427,36.6827596]
[1673649859690,37.0,18.443,18.427,36.6827596]
[1673649860127,29.9691928,18.442,18.427,36.6827596]
[1673649860315,37.0,18.441,18.427,36.6827596]
[1673649860724,20.0,18.439,18.427,36.6827596]
[1673649860952,59.9383856,18.44,18.427,36.6827596]
[1673649860953,17.0,18.438,18.427,36.6827596]
[1673649861147,20.0,18.437,18.427,36.6827596]
[1673649861362,49.9691928,18.437,18.427,36.6827596]
[1673649861571,29.9691928,18.436,18.427,36.6827596]
[1673649861897,20.0,18.435,18.427,36.6827596]
[1673649862214,29.9691928,18.434,18.427,36.6827596]
[1673649862758,37.0,18.433,18.427,36.6827596]
[1673649863149,29.9691928,18.432,18.427,5.96e-05]
[1673649863366,21.50651243,18.431,18.427,5.96e-05]
[1673649863690,4.92887924,18.429,18.427,5.96e-05]
[1673649863878,21.92887924,18.428,18.427,5.96e-05]
[1673649864097,71.89807204,18.428,18.427,5.96e-05]
[1673649865461,51.89807204,18.428,18.427,5.96e-05]
[1673649865669,34.89807204,18.428,18.427,5.96e-05]
[1673649865999,34.89807204,18.431,18.427,5.96e-05]
[1673649866617,4.92887924,18.431,18.427,5.96e-05]
[1673649866845,29.9691928,18.43,18.427,5.96e-05]
[1673649867048,4.92887924,18.429,18.427,5.96e-05]
[1673649867257,4.92887924,18.429,18.42,7.58228846]